fUSD/lending_fUSD_20240217
["ID","MTS","AMOUNT","RATE_DAILY","PERIOD"]
[314338842,1708198241109,-19101.30820769,0.00040993,2]
[314338844,1708198241119,-558.147762,0.00040993,2]
[314338846,1708198241128,-1360.9658408,0.00040993,120]
[314338848,1708198241137,-1729.272066,0.00040993,30]
[314338849,1708198241146,-1798.9722433,0.00040993,2]
[314338850,1708198241155,-237.12617,0.00040993,30]
[314338851,1708198241164,-1000.0,0.00040993,2]
[314338852,1708198241173,-1000.0,0.00040993,2]
[314338853,1708198241183,-1000.0,0.00040993,2]
[314338854,1708198241191,-1000.0,0.00040993,2]
[314338855,1708198241200,-1000.0,0.00040993,2]
[314338856,1708198241212,-1000.0,0.00040993,2]
[314338857,1708198241221,-1000.0,0.00040993,2]
[314338858,1708198241230,-1000.0,0.00040993,2]
[314338859,1708198241241,-1000.0,0.00040993,2]
[314338860,1708198241251,-1154.052248,0.00040993,2]
[314338861,1708198241260,-1990.441194,0.00040993,30]
[314338862,1708198241269,-6000.0,0.00040993,4]
[314338863,1708198241278,-151.42727844,0.00040993,60]
[314338864,1708198241290,-151.42727842,0.00040993,60]
[314338865,1708198241299,-150.0,0.00040999,30]
[314338866,1708198241308,-200.0,0.00040999,7]
[314338867,1708198241317,-100000.0,0.00041,11]
[314338868,1708198241326,-238.19867172,0.00041,30]
[314338869,1708198241335,-800.0,0.00041,2]
[314338870,1708198241344,-166.0,0.00041,2]
[314338871,1708198241353,-200.0,0.00041,30]
[314338872,1708198241362,-502.780568,0.00041,14]
[314338873,1708198241372,-183.0,0.00041,14]
[314338874,1708198241380,-1650.0,0.00041,3]
[314338875,1708198241390,-162.0,0.00041,14]
[314338876,1708198241399,-205.0,0.00041001,23]
[314338877,1708198241408,-1803.68909436,0.00041006,15]
[314338878,1708198241417,-151.60150734,0.00041006,30]
[314338879,1708198241427,-151.60150734,0.0004107,30]
[314338880,1708198241437,-2500.0,0.00041095,2]
[314338881,1708198241446,-250.42759781,0.00041095,7]
[314338882,1708198241455,-208.19964425,0.00041095,7]
[314338883,1708198241465,-199.34184015,0.00041095,7]
[314338884,1708198241474,-209.16909667,0.00041095,7]
[314338885,1708198241483,-183.0,0.00041096,2]
[314338886,1708198241492,-2112.79293948,0.00041111,30]
[314338887,1708198241502,-249.91427298,0.00041195,30]
[314338888,1708198241511,-200.0,0.000412,15]
[314338889,1708198241520,-167.0,0.00041243,2]
[314338890,1708198241529,-155.0,0.00041296,7]
[314338891,1708198241539,-157.09408925,0.00041298,30]
[314338892,1708198241551,-1608.3475989,0.00041384,5]
[314338893,1708198241560,-1000.0,0.00041393,2]
[314338894,1708198241570,-1803.68909436,0.00041439,15]
[314338895,1708198241579,-152.83932661,0.00041447,30]
[314338896,1708198241589,-150.0,0.00041465,7]
[314338897,1708198241598,-150.0,0.00041465,7]
[314338898,1708198241607,-150.0,0.00041465,7]
[314338899,1708198241616,-249.91427298,0.00041492,30]
[314338900,1708198241627,-249.91427298,0.0004153,30]
[314338902,1708198241636,-4280.57011207,0.00041569,3]
[314338904,1708198241645,-1687.52535526,0.00041569,3]
[314338906,1708198241654,-160.83,0.0004158,2]
[314338908,1708198241663,-154.61,0.0004159,2]
[314338910,1708198241673,-150.92656419,0.00041727,30]
[314338912,1708198241682,-1283.87,0.00041783,2]
[314338914,1708198241691,-217.78,0.000418,2]
[314338916,1708198241700,-150.0,0.00041835,7]
[314338917,1708198241709,-150.0,0.00041835,7]
[314338918,1708198241719,-150.0,0.00041835,7]
[314338919,1708198241729,-155.0,0.00041844,7]
[314338920,1708198241738,-1803.68909436,0.00041872,16]
[314338921,1708198241747,-166.6,0.0004189,2]
[314338922,1708198241756,-152.0,0.00041901,4]
[314338923,1708198241765,-240.0,0.0004191,30]
[314338924,1708198241775,-240.0,0.0004192,30]
[314338925,1708198241784,-153.10310574,0.00041929,14]
[314338926,1708198241793,-240.0,0.0004193,30]
[314338927,1708198241802,-150.5,0.0004194,120]
[314338928,1708198241812,-150.5,0.0004195,120]
[314338929,1708198241821,-150.5,0.0004196,120]
[314338930,1708198241831,-192.29,0.0004197,120]
[314338931,1708198241840,-150.5,0.0004198,120]
[314338932,1708198241849,-200.0,0.00041987,11]
[314338933,1708198241858,-225.49,0.00041989,2]
[314338934,1708198241868,-231.21,0.0004199,120]
[314338935,1708198241877,-150.5,0.0004199,120]
[314338936,1708198241887,-165.40063134,0.00041999,30]
[314338937,1708198241897,-100000.0,0.00042,12]
[314338938,1708198241906,-316.03132048,0.00042,2]
[314338939,1708198241916,-8722.5118314,0.00042,2]
[314338940,1708198241925,-1231.24686331,0.00042,120]
[314338941,1708198241934,-965.47916117,0.00042,7]
[314338942,1708198241944,-198286.10475032,0.00042,4]
[314338943,1708198241953,-41038.52296922,0.00042,2]
[314338944,1708198241962,-338.5789,0.00042,59]
[314338945,1708198241971,-3917.74457025,0.00042,10]
[314338946,1708198241980,-177.0,0.00042,30]
[314338947,1708198241990,-16923.8026663,0.00042,5]
[314338948,1708198241999,-4000.0,0.00042,3]
[314338949,1708198242008,-116799.40706068,0.00042,2]
[314338950,1708198242022,-90667.42898296,0.00042,2]
[314338951,1708198242031,-500.0,0.00042,14]
[314338952,1708198242041,-195.19046206,0.00042,2]
[314338953,1708198242051,-195.19046206,0.00042,2]
[314338954,1708198242060,-195.19046206,0.00042,2]
[314338955,1708198242069,-195.19046206,0.00042,2]
[314338956,1708198242078,-195.19046206,0.00042,2]
[314338957,1708198242087,-195.19046206,0.00042,2]
[314338958,1708198242096,-195.19046206,0.00042,2]
[314338959,1708198242105,-195.19046206,0.00042,2]
[314338960,1708198242114,-195.19046206,0.00042,2]
[314338961,1708198242122,-195.19046206,0.00042,2]
[314338962,1708198242132,-195.19046206,0.00042,2]
[314338963,1708198242141,-195.19046206,0.00042,2]
[314338964,1708198242150,-195.19046206,0.00042,2]
[314338965,1708198242159,-195.19046206,0.00042,2]
[314338966,1708198242167,-195.19046206,0.00042,2]
[314338967,1708198242177,-195.19046206,0.00042,2]
[314338968,1708198242186,-195.19046206,0.00042,2]
[314338969,1708198242195,-195.19046206,0.00042,2]
[314338970,1708198242204,-195.19046206,0.00042,2]
[314338971,1708198242213,-195.19046206,0.00042,2]
[314338972,1708198242222,-195.19046206,0.00042,2]
[314338973,1708198242231,-195.19046206,0.00042,2]
[314338974,1708198242242,-195.19046206,0.00042,2]
[314338975,1708198242252,-195.19046206,0.00042,2]
[314338976,1708198242261,-195.19046206,0.00042,2]
[314338977,1708198242271,-195.19046206,0.00042,2]
[314338978,1708198242281,-195.19046206,0.00042,2]
[314338979,1708198242290,-195.19046206,0.00042,2]
[314338980,1708198242300,-195.19046206,0.00042,2]
[314338981,1708198242309,-195.19046206,0.00042,2]
[314338982,1708198242318,-195.19046206,0.00042,2]
[314338983,1708198242328,-195.19046206,0.00042,2]
[314338984,1708198242339,-195.19046206,0.00042,2]
[314338985,1708198242348,-195.19046206,0.00042,2]
[314338986,1708198242357,-195.19046206,0.00042,2]
[314338987,1708198242367,-195.19046206,0.00042,2]
[314338988,1708198242378,-195.19046206,0.00042,2]
[314338989,1708198242387,-195.19046206,0.00042,2]
[314338990,1708198242397,-195.19046206,0.00042,2]
[314338991,1708198242406,-195.19046206,0.00042,2]
[314338992,1708198242416,-195.19046206,0.00042,2]
[314338993,1708198242425,-195.19046206,0.00042,2]
[314338994,1708198242436,-195.19046206,0.00042,2]
[314338995,1708198242446,-195.19046206,0.00042,2]
[314338996,1708198242456,-195.19046206,0.00042,2]
[314338997,1708198242465,-195.19046206,0.00042,2]
[314338998,1708198242474,-195.19046206,0.00042,2]
[314338999,1708198242483,-195.19046206,0.00042,2]
[314339000,1708198242493,-195.19046206,0.00042,2]
[314339001,1708198242502,-195.19046206,0.00042,2]
[314339002,1708198242512,-231.32386847,0.00042,2]
[314339003,1708198242521,-200.0,0.00042,2]
[314339004,1708198242531,-1297.63261035,0.0004201,2]
[314339005,1708198242542,-164.75,0.00042073,2]
[314339006,1708198242552,-310.43,0.00042092,15]
[314339007,1708198242562,-150.92656419,0.00042095,30]
[314339008,1708198242572,-200.0,0.000422,16]
[314339009,1708198242582,-2000.0,0.000422,2]
[314339010,1708198242592,-150.0,0.00042205,7]
[314339011,1708198242602,-150.0,0.00042205,7]
[314339012,1708198242611,-150.0,0.00042205,7]
[314339013,1708198242622,-158.23203844,0.0004222,30]
[314339014,1708198242632,-249.91427298,0.0004223,30]
[314339015,1708198242641,-2120.92834576,0.000423,3]
[314339016,1708198242651,-714.32,0.00042303,2]
[314339017,1708198242661,-1803.68909436,0.00042304,16]
[314339018,1708198242671,-150.92656419,0.00042311,30]
[314339019,1708198242680,-155.0,0.00042392,7]
[314339020,1708198242690,-152.83932661,0.00042415,30]
[314339021,1708198242700,-5000.0,0.000425,40]
[314339022,1708198242710,-150.92656419,0.00042546,30]
[314339023,1708198242719,-150.92656419,0.00042548,30]
[314339025,1708198242730,-152.83932661,0.00042568,30]
[314339026,1708198242739,-150.0,0.00042574,7]
[314339028,1708198242748,-150.0,0.00042574,7]
[314339029,1708198242757,-150.0,0.00042574,7]
[314339030,1708198242766,-150.0,0.00042599,30]
[314339031,1708198242775,-500.0,0.00042599,2]
[314339032,1708198242785,-500.0,0.00042599,2]
[314339034,1708198242794,-500.0,0.00042599,2]
[314339035,1708198242803,-500.0,0.00042599,2]
[314339036,1708198242812,-500.0,0.00042599,2]
[314339037,1708198242821,-500.0,0.00042599,2]
[314339038,1708198242830,-500.0,0.00042599,2]
[314339039,1708198242840,-500.0,0.00042599,2]
[314339040,1708198242849,-500.0,0.00042599,2]
[314339041,1708198242858,-500.0,0.00042599,2]
[314339042,1708198242867,-500.0,0.00042599,2]
[314339043,1708198242877,-500.0,0.00042599,2]
[314339044,1708198242886,-500.0,0.00042599,2]
[314339045,1708198242895,-500.0,0.00042599,2]
[314339046,1708198242903,-500.0,0.00042599,2]
[314339047,1708198242913,-500.0,0.00042599,2]
[314339048,1708198242922,-500.0,0.00042599,2]
[314339049,1708198242932,-500.0,0.00042599,2]
[314339050,1708198242941,-500.0,0.00042599,2]
[314339051,1708198242951,-500.0,0.00042599,2]
[314339052,1708198242960,-500.0,0.00042599,2]
[314339053,1708198242970,-500.0,0.00042599,2]
[314339054,1708198242979,-500.0,0.00042599,2]
[314339055,1708198242988,-500.0,0.00042599,2]
[314339056,1708198242997,-500.0,0.00042599,2]
[314339057,1708198243007,-500.0,0.00042599,2]
[314339058,1708198243016,-500.0,0.00042599,2]
[314339059,1708198243025,-500.0,0.00042599,2]
[314339060,1708198243035,-500.0,0.00042599,2]
[314339061,1708198243044,-500.0,0.00042599,2]
[314339062,1708198243054,-500.0,0.00042599,2]
[314339063,1708198243063,-500.0,0.00042599,2]
[314339064,1708198243073,-500.0,0.00042599,2]
[314339065,1708198243083,-500.0,0.00042599,2]
[314339066,1708198243092,-500.0,0.00042599,2]
[314339067,1708198243102,-500.0,0.00042599,2]
[314339068,1708198243111,-500.0,0.00042599,2]
[314339069,1708198243122,-500.0,0.00042599,2]
[314339070,1708198243132,-500.0,0.00042599,2]
[314339071,1708198243141,-500.0,0.00042599,2]
[314339072,1708198243152,-500.0,0.00042599,2]
[314339073,1708198243162,-500.0,0.00042599,2]
[314339074,1708198243173,-500.0,0.00042599,2]
[314339075,1708198243184,-500.0,0.00042599,2]
[314339076,1708198243194,-500.0,0.00042599,2]
[314339077,1708198243203,-500.0,0.00042599,2]
[314339078,1708198243215,-500.0,0.00042599,2]
[314339079,1708198243225,-500.0,0.00042599,2]
[314339080,1708198243235,-500.0,0.00042599,2]
[314339081,1708198243245,-500.0,0.00042599,2]
[314339082,1708198243253,-500.0,0.00042599,2]
[314339083,1708198243263,-500.0,0.00042599,2]
[314339084,1708198243273,-500.0,0.00042599,2]
[314339085,1708198243282,-500.0,0.00042599,2]
[314339086,1708198243293,-500.0,0.00042599,2]
[314339087,1708198243302,-500.0,0.00042599,2]
[314339088,1708198243312,-500.0,0.00042599,2]
[314339089,1708198243321,-500.0,0.00042599,2]
[314339090,1708198243331,-500.0,0.00042599,2]
[314339091,1708198243341,-500.0,0.00042599,2]
[314339092,1708198243350,-500.0,0.00042599,2]
[314339093,1708198243359,-500.0,0.00042599,2]
[314339094,1708198243370,-500.0,0.00042599,2]
[314339095,1708198243380,-400.0,0.00042599,2]
[314339096,1708198243389,-500.0,0.00042599,2]
[314339097,1708198243398,-500.0,0.00042599,2]
[314339098,1708198243407,-500.0,0.00042599,2]
[314339099,1708198243417,-500.0,0.00042599,2]
[314339100,1708198243426,-500.0,0.00042599,2]
[314339101,1708198243436,-500.0,0.00042599,2]
[314339102,1708198243446,-500.0,0.00042599,2]
[314339103,1708198243456,-500.0,0.00042599,2]
[314339104,1708198243466,-500.0,0.00042599,2]
[314339105,1708198243475,-500.0,0.00042599,2]
[314339106,1708198243485,-500.0,0.00042599,2]
[314339107,1708198243494,-500.0,0.00042599,2]
[314339108,1708198243504,-500.0,0.00042599,2]
[314339109,1708198243513,-500.0,0.00042599,2]
[314339110,1708198243523,-500.0,0.00042599,2]
[314339111,1708198243532,-500.0,0.00042599,2]
[314339112,1708198243544,-500.0,0.00042599,2]
[314339113,1708198243554,-500.0,0.00042599,2]
[314339114,1708198243564,-500.0,0.00042599,2]
[314339115,1708198243573,-500.0,0.00042599,2]
[314339116,1708198243583,-500.0,0.00042599,2]
[314339117,1708198243593,-500.0,0.00042599,2]
[314339118,1708198243603,-500.0,0.00042599,2]
[314339119,1708198243612,-500.0,0.00042599,2]
[314339120,1708198243622,-500.0,0.00042599,2]
[314339121,1708198243632,-500.0,0.00042599,2]
[314339122,1708198243643,-500.0,0.00042599,2]
[314339123,1708198243652,-500.0,0.00042599,2]
[314339124,1708198243661,-500.0,0.00042599,2]
[314339125,1708198243670,-500.0,0.00042599,2]
[314339126,1708198243679,-500.0,0.00042599,2]
[314339127,1708198243690,-500.0,0.00042599,2]
[314339128,1708198243700,-500.0,0.00042599,2]
[314339129,1708198243709,-500.0,0.00042599,2]
[314339131,1708198243866,-500.0,0.00042599,2]
[314339132,1708198243877,-500.0,0.00042599,2]
[314339133,1708198243888,-500.0,0.00042599,2]
[314339134,1708198243898,-500.0,0.00042599,2]
[314339135,1708198243907,-500.0,0.00042599,2]
[314339136,1708198243916,-500.0,0.00042599,2]
[314339137,1708198243925,-500.0,0.00042599,2]
[314339138,1708198243934,-500.0,0.00042599,2]
[314339139,1708198243944,-500.0,0.00042599,2]
[314339140,1708198243953,-400.0,0.00042599,2]
[314339141,1708198243963,-500.0,0.00042599,2]
[314339142,1708198243972,-500.0,0.00042599,2]
[314339143,1708198243981,-500.0,0.00042599,2]
[314339144,1708198243990,-500.0,0.00042599,2]
[314339145,1708198243999,-500.0,0.00042599,2]
[314339146,1708198244008,-500.0,0.00042599,2]
[314339147,1708198244017,-500.0,0.00042599,2]
[314339148,1708198244026,-500.0,0.00042599,2]
[314339149,1708198244036,-500.0,0.00042599,2]
[314339150,1708198244047,-500.0,0.00042599,2]
[314339151,1708198244055,-500.0,0.00042599,2]
[314339152,1708198244064,-500.0,0.00042599,2]
[314339153,1708198244073,-500.0,0.00042599,2]
[314339154,1708198244083,-500.0,0.00042599,2]
[314339155,1708198244093,-500.0,0.00042599,2]
[314339156,1708198244104,-500.0,0.00042599,2]
[314339157,1708198244112,-500.0,0.00042599,2]
[314339158,1708198244122,-500.0,0.00042599,2]
[314339159,1708198244131,-500.0,0.00042599,2]
[314339160,1708198244141,-500.0,0.00042599,2]
[314339161,1708198244150,-500.0,0.00042599,2]
[314339162,1708198244159,-500.0,0.00042599,2]
[314339163,1708198244169,-500.0,0.00042599,2]
[314339164,1708198244178,-500.0,0.00042599,2]
[314339165,1708198244187,-500.0,0.00042599,2]
[314339166,1708198244198,-500.0,0.00042599,2]
[314339167,1708198244208,-500.0,0.00042599,2]
[314339168,1708198244218,-500.0,0.00042599,2]
[314339169,1708198244226,-500.0,0.00042599,2]
[314339170,1708198244238,-500.0,0.00042599,2]
[314339171,1708198244248,-500.0,0.00042599,2]
[314339172,1708198244258,-500.0,0.00042599,2]
[314339173,1708198244267,-500.0,0.00042599,2]
[314339174,1708198244276,-500.0,0.00042599,2]
[314339175,1708198244285,-500.0,0.00042599,2]
[314339176,1708198244295,-500.0,0.00042599,2]
[314339177,1708198244305,-500.0,0.00042599,2]
[314339178,1708198244315,-500.0,0.00042599,2]
[314339179,1708198244324,-500.0,0.00042599,2]
[314339180,1708198244334,-500.0,0.00042599,2]
[314339181,1708198244343,-500.0,0.00042599,2]
[314339182,1708198244352,-500.0,0.00042599,2]
[314339183,1708198244361,-500.0,0.00042599,2]
[314339184,1708198244370,-500.0,0.00042599,2]
[314339185,1708198244379,-500.0,0.00042599,2]
[314339186,1708198244389,-500.0,0.00042599,2]
[314339187,1708198244398,-500.0,0.00042599,2]
[314339188,1708198244408,-500.0,0.00042599,2]
[314339189,1708198244417,-500.0,0.00042599,2]
[314339190,1708198244426,-500.0,0.00042599,2]
[314339191,1708198244436,-500.0,0.00042599,2]
[314339192,1708198244446,-500.0,0.00042599,2]
[314339193,1708198244455,-500.0,0.00042599,2]
[314339194,1708198244465,-500.0,0.00042599,2]
[314339195,1708198244475,-500.0,0.00042599,2]
[314339196,1708198244484,-500.0,0.00042599,2]
[314339197,1708198244496,-500.0,0.00042599,2]
[314339198,1708198244506,-500.0,0.00042599,2]
[314339199,1708198244514,-500.0,0.00042599,2]
[314339200,1708198244524,-500.0,0.00042599,2]
[314339201,1708198244534,-500.0,0.00042599,2]
[314339202,1708198244545,-500.0,0.00042599,2]
[314339203,1708198244555,-500.0,0.00042599,2]
[314339204,1708198244564,-500.0,0.00042599,2]
[314339205,1708198244573,-500.0,0.00042599,2]
[314339206,1708198244582,-500.0,0.00042599,2]
[314339207,1708198244592,-500.0,0.00042599,2]
[314339208,1708198244602,-500.0,0.00042599,2]
[314339209,1708198244611,-500.0,0.00042599,2]
[314339210,1708198244621,-500.0,0.00042599,2]
[314339211,1708198244631,-500.0,0.00042599,2]
[314339212,1708198244640,-500.0,0.00042599,2]
[314339213,1708198244649,-500.0,0.00042599,2]
[314339214,1708198244658,-500.0,0.00042599,2]
[314339215,1708198244667,-500.0,0.00042599,2]
[314339216,1708198244675,-500.0,0.00042599,2]
[314339217,1708198244684,-500.0,0.00042599,2]
[314339218,1708198244693,-500.0,0.00042599,2]
[314339219,1708198244702,-500.0,0.00042599,2]
[314339220,1708198244711,-500.0,0.00042599,2]
[314339221,1708198244720,-500.0,0.00042599,2]
[314339222,1708198244730,-500.0,0.00042599,2]
[314339223,1708198244739,-500.0,0.00042599,2]
[314339224,1708198244749,-500.0,0.00042599,2]
[314339225,1708198244759,-500.0,0.00042599,2]
[314339226,1708198244768,-500.0,0.00042599,2]
[314339227,1708198244778,-500.0,0.00042599,2]
[314339228,1708198244788,-500.0,0.00042599,2]
[314339229,1708198244798,-500.0,0.00042599,2]
[314339230,1708198244809,-500.0,0.00042599,2]
[314339231,1708198244819,-500.0,0.00042599,2]
[314339232,1708198244830,-500.0,0.00042599,2]
[314339233,1708198244840,-500.0,0.00042599,2]
[314339234,1708198244849,-500.0,0.00042599,2]
[314339235,1708198244860,-500.0,0.00042599,2]
[314339236,1708198244871,-500.0,0.00042599,2]
[314339237,1708198244881,-500.0,0.00042599,2]
[314339238,1708198244890,-500.0,0.00042599,2]
[314339239,1708198244899,-500.0,0.00042599,2]
[314339240,1708198244909,-500.0,0.00042599,2]
[314339241,1708198244919,-500.0,0.00042599,2]
[314339242,1708198244930,-500.0,0.00042599,2]
[314339243,1708198244939,-500.0,0.00042599,2]
[314339244,1708198244950,-500.0,0.00042599,2]
[314339245,1708198244959,-500.0,0.00042599,2]
[314339246,1708198244970,-500.0,0.00042599,2]
[314339247,1708198244979,-500.0,0.00042599,2]
[314339248,1708198244990,-500.0,0.00042599,2]
[314339249,1708198245000,-500.0,0.00042599,2]
[314339250,1708198245010,-500.0,0.00042599,2]
[314339251,1708198245019,-500.0,0.00042599,2]
[314339252,1708198245029,-500.0,0.00042599,2]
[314339253,1708198245038,-500.0,0.00042599,2]
[314339254,1708198245047,-500.0,0.00042599,2]
[314339255,1708198245056,-500.0,0.00042599,2]
[314339256,1708198245065,-400.0,0.00042599,2]
[314339257,1708198245074,-500.0,0.00042599,2]
[314339258,1708198245083,-500.0,0.00042599,2]
[314339259,1708198245093,-500.0,0.00042599,2]
[314339260,1708198245103,-500.0,0.00042599,2]
[314339261,1708198245112,-500.0,0.00042599,2]
[314339262,1708198245122,-500.0,0.00042599,2]
[314339263,1708198245131,-500.0,0.00042599,2]
[314339264,1708198245141,-500.0,0.00042599,2]
[314339265,1708198245150,-500.0,0.00042599,2]
[314339266,1708198245159,-500.0,0.00042599,2]
[314339267,1708198245168,-500.0,0.00042599,2]
[314339268,1708198245178,-500.0,0.00042599,2]
[314339269,1708198245187,-500.0,0.00042599,2]
[314339270,1708198245196,-500.0,0.00042599,2]
[314339271,1708198245206,-500.0,0.00042599,2]
[314339272,1708198245215,-500.0,0.00042599,2]
[314339273,1708198245224,-500.0,0.00042599,2]
[314339274,1708198245234,-500.0,0.00042599,2]
[314339275,1708198245244,-500.0,0.00042599,2]
[314339276,1708198245253,-500.0,0.00042599,2]
[314339277,1708198245263,-500.0,0.00042599,2]
[314339278,1708198245273,-500.0,0.00042599,2]
[314339279,1708198245282,-500.0,0.00042599,2]
[314339280,1708198245291,-500.0,0.00042599,2]
[314339281,1708198245300,-500.0,0.00042599,2]
[314339282,1708198245309,-500.0,0.00042599,2]
[314339283,1708198245318,-500.0,0.00042599,2]
[314339284,1708198245328,-500.0,0.00042599,2]
[314339285,1708198245336,-500.0,0.00042599,2]
[314339286,1708198245344,-500.0,0.00042599,2]
[314339287,1708198245356,-500.0,0.00042599,2]
[314339288,1708198245366,-500.0,0.00042599,2]
[314339289,1708198245375,-500.0,0.00042599,2]
[314339290,1708198245385,-14770.14118283,0.00042599,2]
[314339297,1708198246271,-576.41699223,0.00037693,2]
[314339298,1708198246285,-1540.36184895,0.00037693,2]
[314339299,1708198246300,-654.9727081,0.00037693,2]
[314339300,1708198246311,-3920.91923595,0.00037693,2]
[314339301,1708198246331,-476.04419949,0.00037693,2]
[314339302,1708198246344,-387.06005266,0.00037693,2]
[314339303,1708198246387,-284.04554327,0.00037693,2]
[314339304,1708198246399,-8470.4287982,0.00037693,2]
[314339305,1708198246410,-2052.32200668,0.00037693,2]
[314339306,1708198247075,-1156.7999996,0.00037693,2]
[314339307,1708198247094,-4380.62861487,0.00037693,2]
[314339308,1708198247104,-150.0,0.00038608,2]
[314339309,1708198247115,-150.0,0.00038617,2]
[314339310,1708198247124,-150.0,0.00038634,2]
[314339311,1708198247135,-150.0,0.00038635,2]
[314339312,1708198247144,-150.0,0.00038643,2]
[314339313,1708198247153,-150.0,0.00038647,2]
[314339314,1708198247162,-150.0,0.00038648,2]
[314339315,1708198247171,-150.0,0.00038691,2]
[314339316,1708198247180,-150.0,0.00038758,2]
[314339317,1708198247190,-150.0,0.00038761,2]
[314339318,1708198247201,-150.0,0.00038768,2]
[314339319,1708198247211,-150.0,0.00038772,2]
[314339320,1708198247223,-150.0,0.00038809,2]
[314339321,1708198247232,-150.0,0.00038835,2]
[314339322,1708198247243,-150.0,0.00038856,2]
[314339323,1708198247253,-150.0,0.00038857,2]
[314339324,1708198247263,-150.0,0.00038864,2]
[314339325,1708198247272,-1000.0,0.0003926,2]
[314339326,1708198247282,-1000.0,0.00040733,2]
[314339327,1708198247291,-300.0,0.0004156,2]
[314339328,1708198247300,-300.0,0.00041671,2]
[314339329,1708198247309,-300.0,0.0004168,2]
[314339330,1708198247318,-1000.0,0.00042205,2]
[314339331,1708198247328,-4151.85881717,0.00042599,2]
[314339332,1708198247337,-154.02,0.000426,4]
[314339333,1708198247346,-154.02,0.000426,4]
[314339334,1708198247355,-154.02,0.000426,4]
[314339335,1708198247364,-154.02,0.000426,4]
[314339336,1708198247374,-3180.48,0.000426,4]
[314339337,1708198247383,-3180.48,0.000426,4]
[314339338,1708198247393,-3180.48,0.000426,4]
[314339339,1708198247402,-3180.48,0.000426,4]
[314339340,1708198247412,-3180.48,0.000426,4]
[314339341,1708198247421,-3180.48,0.000426,4]
[314339342,1708198247430,-3180.48,0.000426,4]
[314339343,1708198247440,-3180.48,0.000426,4]
[314339344,1708198247449,-3180.48,0.000426,4]
[314339345,1708198247459,-3180.48,0.000426,4]
[314339346,1708198247468,-3180.48,0.000426,4]
[314339347,1708198247478,-3180.48,0.000426,4]
[314339348,1708198247488,-3180.48,0.000426,4]
[314339349,1708198247497,-3180.48,0.000426,4]
[314339350,1708198247507,-3180.48,0.000426,4]
[314339351,1708198247517,-3180.48,0.000426,4]
[314339352,1708198247527,-3180.48,0.000426,4]
[314339353,1708198247538,-3180.48,0.000426,4]
[314339354,1708198247549,-3180.48,0.000426,4]
[314339355,1708198247559,-3180.48,0.000426,4]
[314339356,1708198247568,-158.23203844,0.00042605,30]
[314339357,1708198247578,-151.60150734,0.00042653,30]
[314339358,1708198247588,-166.05101383,0.00042654,30]
[314339359,1708198247598,-25285.74,0.000427,9]
[314339360,1708198247607,-19999.99,0.00042707,2]
[314339361,1708198247616,-5787.22,0.00042707,2]
[314339362,1708198247628,-1803.68909436,0.00042737,17]